bitfinex-derivatives/quotes_SOLF0:USTF0_20240824
["timestamp","ask_amount","ask_price","bid_price","bid_amount"]
[1724518785175,22.1597,161.23,161.18,24.8]
[1724518785570,0.04148081,161.22,161.19,0.04183913]
[1724518786076,3.14138081,161.22,161.19,0.04183913]
[1724518786571,0.04148081,161.22,161.19,0.04183913]
[1724518788467,19.06,161.21,161.19,0.04183913]
[1724518789573,0.04148081,161.22,161.19,0.04183913]
[1724518791272,0.04148081,161.22,161.19,3.14223913]
[1724518791671,0.04148081,161.22,161.19,0.04183913]
[1724518793782,0.04148081,161.22,161.19,3.14233913]
[1724518794285,0.04148081,161.22,161.19,0.04183913]
[1724518795077,19.06,161.21,161.19,0.04183913]
[1724518795685,22.1601,161.21,161.19,0.04183913]
[1724518797286,19.06,161.21,161.11,22.19339993]
[1724518797486,20.3654,161.21,161.11,22.19339993]
[1724518797789,22.1605,161.19,161.11,22.19339993]
[1724518797995,3.1005,161.19,161.11,3.13339993]
[1724518798283,0.0405827,161.17,161.14,3.1014]
[1724518798491,0.0405827,161.17,161.13,0.04564873]
[1724518799592,0.0405827,161.17,161.14,3.1013]
[1724518800187,0.0405827,161.17,161.15,3.1011]
[1724518800377,0.0405827,161.17,161.13,0.04564873]
[1724518801004,19.1005827,161.17,161.13,0.04564873]
[1724518801378,0.0405827,161.17,161.13,0.04564873]
[1724518801980,0.0405827,161.17,161.16,3.1011]
[1724518802491,19.06,161.23,161.19,3.1004]
[1724518802685,3.6887,161.26,161.1,1.2734]
[1724518802885,19.06,161.21,161.1,20.3334]
[1724518803085,19.06,161.21,161.17,3.1008]
[1724518803685,19.10182414,161.21,161.17,3.14610461]
[1724518804389,0.04182414,161.21,161.17,0.04530461]
[1724518804689,0.04182414,161.21,161.17,19.10530461]
[1724518804992,19.06,161.28,161.19,19.06]
[1724518805386,19.06,161.28,161.23,3.0997]
[1724518805888,0.0394122,161.27,161.24,0.04461794]
[1724518807987,19.06,161.25,161.12,1.3227]
[1724518808293,19.06,161.25,161.13,22.69183047]
[1724518808491,19.06,161.25,161.14,0.99473047]
[1724518808790,22.1594,161.25,161.19,3.1004]
[1724518808990,22.1594,161.25,161.14,0.99473047]
[1724518808991,0.04366875,161.24,161.2,0.03943484]
[1724518809188,0.04577553,161.24,161.2,0.03943484]
[1724518809390,0.04577553,161.24,161.2,3.13953484]
[1724518809990,0.04577553,161.24,161.2,0.03943484]
[1724518810610,0.04577553,161.24,161.22,3.0999]
[1724518811496,0.04577553,161.24,161.21,3.1001]
[1724518811699,0.04577553,161.24,161.2,0.03943484]
[1724518812604,0.04577553,161.24,161.23,3.0997]
[1724518813398,0.04577553,161.24,161.22,3.0999]
[1724518813824,0.04577553,161.24,161.2,0.03943484]
[1724518814596,0.04577553,161.24,161.23,3.0997]
[1724518814996,0.04577553,161.24,161.2,0.03943484]
[1724518815496,0.04577553,161.24,161.22,3.0999]
[1724518816925,0.04577553,161.24,161.23,3.0997]
[1724518817321,0.04577553,161.24,161.2,0.03943484]
[1724518818095,0.04577553,161.24,161.21,3.0999]
[1724518818705,0.04577553,161.24,161.2,0.03943484]
[1724518819103,19.06,161.23,161.2,0.03943484]
[1724518819405,0.04577553,161.24,161.2,0.03943484]
[1724518819802,0.04577553,161.24,161.21,3.1]
[1724518820907,0.04577553,161.24,161.2,0.03943484]
[1724518821503,0.04577553,161.24,161.21,3.1]
[1724518821705,0.04577553,161.24,161.2,0.03943484]
[1724518822307,0.04577553,161.24,161.2,3.13963484]
[1724518823005,19.06,161.23,161.2,0.03943484]
[1724518823201,19.06,161.21,161.2,0.03943484]
[1724518823398,19.06,161.23,161.2,0.03943484]
[1724518824304,3.1,161.22,161.2,0.03943484]
[1724518827609,22.1598,161.23,161.2,0.03943484]
[1724518829808,19.06,161.21,161.2,0.03943484]
[1724518830028,19.06,161.21,161.15,3.1012]
[1724518830510,7.62,161.19,161.15,3.1012]
[1724518830905,7.62,161.19,161.14,3.1014]
[1724518831307,7.62,161.17,161.14,3.1014]
[1724518831505,7.62,161.17,161.15,0.04328612]
[1724518832404,7.62,161.16,161.15,0.04328612]
[1724518833001,7.62,161.16,161.09,0.99558464]
[1724518833707,10.7209,161.17,161.1,7.62]
[1724518833905,0.03947566,161.15,161.12,0.04264172]
[1724518834810,0.03947566,161.15,161.12,3.14444172]
[1724518835008,7.65947566,161.15,161.12,0.04264172]
[1724518836010,0.03947566,161.15,161.12,0.04264172]
[1724518837041,0.03947566,161.15,161.12,3.14434172]
[1724518838411,0.03947566,161.15,161.12,0.04264172]
[1724518838819,19.06,161.13,161.12,0.04264172]
[1724518839019,22.1617,161.13,161.12,0.04264172]
[1724518839222,0.03947566,161.15,161.12,0.04264172]
[1724518842919,19.06,161.13,161.12,0.04264172]
[1724518843515,19.09947566,161.15,161.12,0.04264172]
[1724518846126,0.03947566,161.15,161.12,0.04264172]
[1724518847218,0.03947566,161.15,161.13,3.1016]
[1724518848231,0.03947566,161.15,161.12,0.04264172]
[1724518848525,19.09947566,161.15,161.12,0.04264172]
[1724518848826,0.03947566,161.15,161.12,0.04264172]
[1724518849522,0.03947566,161.15,161.13,3.1016]
[1724518849829,0.03947566,161.15,161.12,0.04264172]
[1724518850028,0.03947566,161.15,161.14,3.1015]
[1724518852421,0.03947566,161.15,161.12,0.04264172]
[1724518852422,19.06,161.26,161.13,19.06]
[1724518852626,19.06,161.24,161.14,19.06]
[1724518852832,19.06,161.24,161.18,3.1006]
[1724518852833,22.1595,161.24,161.18,3.1006]
[1724518853121,19.06,161.24,161.15,3.15192576]
[1724518853327,0.0402896,161.21,161.18,0.04434963]
[1724518854117,0.0402896,161.21,161.19,3.1005]
[1724518854323,0.0402896,161.21,161.18,0.04434963]
[1724518854725,0.0402896,161.21,161.2,3.1003]
[1724518855524,24.673,161.3,161.2,19.06]
[1724518855730,21.5745,161.3,161.2,19.06]
[1724518856127,21.5745,161.3,161.24,3.0995]
[1724518856329,20.331,161.3,161.24,3.0995]
[1724518856525,0.03993336,161.29,161.25,0.04239833]
[1724518856727,0.04424274,161.29,161.25,0.04239833]
[1724518857220,0.04424274,161.29,161.25,3.0911584]
[1724518857626,0.04424274,161.29,161.26,20.277]
[1724518857826,3.0971,161.37,161.3,3.0982]
[1724518858022,3.0971,161.37,161.28,19.06]
[1724518858329,19.06,161.39,161.28,19.06]
[1724518858834,0.04464988,161.35,161.32,0.0422847]
[1724518859035,0.04300601,161.35,161.32,3.13874498]
[1724518861332,0.04300601,161.35,161.32,0.04094498]
[1724518861527,19.06,161.33,161.32,0.04094498]
[1724518863026,22.1578,161.33,161.32,0.04094498]
[1724518863226,19.06,161.33,161.26,3.0991]
[1724518863628,3.098,161.32,161.26,3.0991]
[1724518863830,1.2773,161.35,161.24,3.0995]
[1724518863831,19.06,161.31,161.24,3.0995]
[1724518864230,19.06,161.28,161.26,0.04574889]
[1724518867343,19.06,161.27,161.17,3.7713]
[1724518867537,19.06,161.23,161.17,3.7713]
[1724518867833,19.06,161.25,161.21,3.1001]
[1724518868234,0.04512065,161.25,161.21,3.1001]
[1724518868436,0.04512065,161.25,161.21,3.14241954]
[1724518869033,0.04512065,161.25,161.21,0.04231954]
[1724518872436,19.06,161.24,161.21,0.04231954]
[1724518872633,19.06,161.22,161.15,3.05292576]
[1724518872840,19.06,161.22,161.12,19.06]
[1724518873038,22.16,161.22,161.15,3.1011]
[1724518873240,19.06,161.22,161.15,3.1011]
[1724518873638,3.1459972,161.2,161.17,0.03993581]
[1724518873835,0.0456972,161.2,161.17,0.03993581]
[1724518875636,0.0456972,161.2,161.17,19.09993581]
[1724518876239,0.0456972,161.2,161.17,0.03993581]
[1724518876638,0.0456972,161.2,161.17,3.14063581]
[1724518876842,0.0456972,161.2,161.17,0.03993581]
[1724518877940,0.0456972,161.2,161.18,3.1007]
[1724518879335,19.06,161.19,161.17,0.03993581]
[1724518879743,22.9022,161.19,161.08,19.06]
[1724518879941,19.06,161.17,161.08,19.06]
[1724518880146,19.06,161.17,161.11,3.1019]
[1724518880744,0.04077609,161.16,161.12,0.04211935]
[1724518882241,19.06,161.15,161.12,0.04211935]
[1724518882940,3.1015,161.14,161.12,0.04211935]
[1724518883640,19.06,161.13,161.07,24.78]
[1724518883845,19.06,161.13,161.02,19.06]
[1724518884341,3.1019,161.12,161.06,3.1028]
[1724518884735,0.03957692,161.11,161.07,0.04103407]
[1724518885044,19.06,161.08,160.99,1.3069]
[1724518885943,20.2986,161.1,161.01,19.06]
[1724518886138,0.04521201,161.07,161.04,0.03539889]
[1724518887047,0.04521201,161.07,161.04,3.13859889]
[1724518887243,0.04521201,161.07,161.04,0.03539889]
[1724518888448,0.04521201,161.07,161.04,3.13869889]
[1724518888654,0.04521201,161.07,161.04,19.09539889]
[1724518889045,0.04521201,161.07,161.05,3.103]
[1724518889547,0.04521201,161.07,161.04,0.03539889]
[1724518889951,0.04521201,161.07,161.04,3.13859889]
[1724518890249,0.04521201,161.07,161.04,0.03539889]
[1724518891354,0.04521201,161.07,161.06,3.103]
[1724518891648,19.06,161.16,161.05,19.06]
[1724518891854,19.06,161.16,161.07,19.06]
[1724518892046,19.06,161.16,161.09,3.1022]
[1724518892257,19.06,161.14,161.05,19.06]
[1724518892648,19.06,161.14,161.08,0.03910534]
[1724518892857,0.04237406,161.11,161.08,0.03910534]
[1724518893649,0.04237406,161.11,161.08,3.14170534]
[1724518893952,0.04237406,161.11,161.08,0.03910534]
[1724518894146,0.04237406,161.11,161.1,3.1022]
[1724518894352,2.585,161.19,161.1,3.1022]
[1724518894353,2.585,161.19,161.1,19.06]
[1724518894951,1.3164,161.19,161.13,19.06]
[1724518895156,1.3164,161.19,161.11,19.06]
[1724518895451,0.03943167,161.17,161.13,3.1479447]
[1724518895649,0.03943167,161.17,161.13,0.0464447]
[1724518895864,0.03943167,161.17,161.16,3.1011]
[1724518896453,2.5731,161.28,161.16,23.8]
[1724518896752,2.5731,161.28,161.21,23.8]
[1724518896958,23.8,161.33,161.21,23.8]
[1724518897258,2.5731,161.32,161.26,3.0991]
[1724518897453,2.5731,161.32,161.21,23.8]
[1724518897653,0.04575153,161.28,161.25,0.04608018]
[1724518897860,0.04575153,161.28,161.27,3.099]
[1724518898049,3.17125654,161.36,161.26,23.8]
[1724518898747,23.8,161.37,161.26,23.8]
[1724518898952,27.6054,161.43,161.3,23.8]
[1724518899251,27.6054,161.43,161.35,0.04110736]
[1724518899252,0.04423659,161.38,161.35,0.04110736]
[1724518899451,0.04346883,161.38,161.35,0.03924517]
[1724518901759,0.04346883,161.38,161.37,3.097]
[1724518903054,0.04346883,161.38,161.35,26.93644517]
[1724518903255,0.04346883,161.38,161.35,3.13644517]
[1724518904156,0.04346883,161.38,161.35,0.03924517]
[1724518907161,0.04346883,161.38,161.35,3.13664517]
[1724518907658,0.04346883,161.38,161.35,0.03924517]
[1724518911056,3.14036883,161.38,161.35,0.03924517]
[1724518911452,0.04346883,161.38,161.35,0.03924517]
[1724518913763,0.04346883,161.38,161.36,3.0971]
[1724518913958,0.04346883,161.38,161.35,0.03924517]
[1724518914361,0.04346883,161.38,161.35,3.13664517]
[1724518915767,3.0972,161.36,161.35,0.03924517]
[1724518917174,3.0972,161.36,161.3,3.0984]
[1724518917368,3.0975,161.35,161.3,3.0984]
[1724518917872,25.0742,161.37,161.3,3.0984]
[1724518918166,23.84103569,161.35,161.32,0.04416311]
[1724518918571,0.04103569,161.35,161.32,0.04416311]
[1724518921267,0.04103569,161.35,161.32,3.14216311]
[1724518921473,25.0607,161.44,161.32,23.84416311]
[1724518921675,25.0607,161.44,161.33,1.315]
[1724518921877,23.8,161.42,161.33,1.315]
[1724518922174,26.86947701,161.42,161.31,1.2647]
[1724518922375,23.8,161.4,161.31,1.2647]
[1724518922562,0.03902097,161.37,161.34,0.04248686]
[1724518924272,23.8,161.35,161.25,1.315]
[1724518924685,23.8,161.35,161.21,26.2468]
[1724518924867,23.8,161.35,161.23,23.8]
[1724518925068,0.04694476,161.31,161.27,0.04400295]
[1724518926086,1.2521,161.4,161.28,23.8]
[1724518926266,1.2521,161.4,161.29,1.2469]
[1724518926672,1.2521,161.4,161.3,23.8]
[1724518927174,0.04175969,161.37,161.33,0.0415168]
[1724518928072,3.13885969,161.37,161.33,0.0415168]
[1724518928574,0.04175969,161.37,161.33,0.0415168]
[1724518928879,3.0973,161.36,161.33,0.0415168]
[1724518929107,0.04175969,161.37,161.33,0.0415168]
[1724518929274,3.0976,161.34,161.33,0.0415168]
[1724518929974,3.0979,161.33,161.23,23.8]
[1724518930171,3.0979,161.33,161.23,25.0365]
[1724518930372,3.0979,161.33,161.25,3.0993]
[1724518930881,23.8,161.34,161.23,25.0365]
[1724518931180,0.04607262,161.31,161.27,0.0398854]
[1724518932567,4.3486,161.4,161.29,23.8]
[1724518932777,23.8,161.43,161.33,23.8]
[1724518933179,23.8,161.43,161.3,26.3207]
[1724518933473,23.8,161.43,161.32,3.098]
[1724518933675,0.04589242,161.37,161.34,0.03925991]
[1724518934479,0.04589242,161.37,161.35,23.8]
[1724518935287,0.04589242,161.37,161.35,26.8974]
[1724518935776,0.04589242,161.37,161.34,0.03925991]
[1724518936078,23.8,161.35,161.34,0.03925991]
[1724518936282,23.8,161.35,161.25,0.99227453]
[1724518936483,23.8,161.35,161.24,23.8]
[1724518937379,0.04029323,161.31,161.28,0.04464602]
[1724518938176,3.0984,161.3,161.28,0.04464602]
[1724518939779,3.0986,161.29,161.28,0.04464602]
[1724518940784,3.0988,161.28,161.2,26.9003]
[1724518941079,23.8,161.29,161.17,26.4095]
[1724518941277,23.8,161.29,161.18,0.993788]
[1724518941278,26.84646014,161.29,161.18,0.993788]
[1724518941470,23.8,161.29,161.17,26.4095]
[1724518941681,3.0994,161.25,161.18,3.1007]
[1724518941872,0.04669706,161.23,161.2,0.04704364]
[1724518945183,0.04669706,161.23,161.22,23.8]
[1724518945883,2.4797,161.34,161.22,23.8]
[1724518946184,1.2174,161.37,161.28,23.8]
[1724518946391,3.6971,161.42,161.28,23.8]
[1724518946580,23.8,161.4,161.28,23.8]
[1724518946785,0.0445648,161.36,161.32,0.04407262]
[1724518947686,0.0445648,161.36,161.33,3.0977]
[1724518948093,0.0445648,161.36,161.32,0.04407262]
[1724518948287,0.0445648,161.36,161.32,3.14207262]
[1724518948585,0.0445648,161.36,161.32,0.04407262]
[1724518949989,0.0445648,161.36,161.32,3.14207262]
[1724518952785,0.0445648,161.36,161.33,3.0978]
[1724518952985,0.0445648,161.36,161.33,23.8]
[1724518953292,23.8,161.48,161.35,23.8]
[1724518953493,23.8,161.48,161.38,3.0967]
[1724518953494,3.0957,161.45,161.38,3.0967]
[1724518953991,3.0952,161.47,161.39,3.0966]
[1724518954392,0.04452524,161.45,161.41,0.04567967]
[1724518955893,0.04452524,161.45,161.43,3.0957]
[1724518956697,23.8,161.56,161.43,23.8]
[1724518956987,3.0941,161.53,161.43,23.8]
[1724518957187,23.8,161.58,161.45,23.8]
[1724518957388,3.0947,161.5,161.37,2.5225]
[1724518957609,23.8,161.53,161.4,23.8]
[1724518957793,0.04550275,161.48,161.45,0.04169868]
[1724518959891,3.0953,161.47,161.45,0.04169868]
[1724518961993,3.0953,161.46,161.45,0.04169868]
[1724518964904,0.04550275,161.48,161.45,0.04169868]
[1724518967004,3.14050275,161.48,161.45,0.04169868]
[1724518967699,3.0951,161.47,161.45,0.04169868]
[1724518968607,23.8,161.47,161.45,0.04169868]
[1724518969211,3.0953,161.46,161.45,0.04169868]
[1724518969616,23.8,161.47,161.37,1.2017]
[1724518969905,23.8,161.45,161.33,90.21262771]
[1724518970104,1.3084,161.44,161.33,90.21262771]
[1724518970303,3.0961,161.42,161.36,3.0971]
[1724518970704,0.04646352,161.41,161.37,3.13591497]
[1724518971806,0.04646352,161.41,161.37,0.03901497]
[1724518972513,0.04646352,161.41,161.37,3.13601497]
[1724518972806,0.04646352,161.41,161.37,0.03901497]
[1724518973420,3.0965,161.4,161.37,0.03901497]
[1724518974210,3.0967,161.39,161.37,0.03901497]
[1724518975305,3.0968,161.38,161.37,0.03901497]
[1724518975706,0.04646352,161.41,161.37,0.03901497]
[1724518976504,23.8,161.4,161.37,0.03901497]
[1724518977011,23.8,161.38,161.3,24.76]
[1724518977709,3.0976,161.35,161.3,3.0983]
[1724518978106,0.04095308,161.34,161.31,0.04406037]
[1724518978303,3.098,161.33,161.31,0.04406037]
[1724518978503,0.04095308,161.34,161.31,0.04406037]
[1724518979203,3.13875308,161.34,161.31,0.04406037]
[1724518979414,0.04095308,161.34,161.31,0.04406037]
[1724518979605,23.8,161.33,161.31,0.04406037]
[1724518979806,3.098,161.32,161.31,0.04406037]
[1724518980313,3.11530455,161.32,161.21,27.6226]
[1724518980505,23.8,161.3,161.2,24.76]
[1724518980708,2.5481,161.33,161.2,24.76]
[1724518980709,23.8,161.28,161.2,24.76]
[1724518980912,3.0998,161.23,161.17,3.1008]
[1724518981107,23.8,161.25,161.15,1.314]
[1724518981307,0.0471298,161.22,161.18,0.04520608]
[1724518981512,0.03935567,161.22,161.18,0.04607507]
[1724518981813,0.03935567,161.22,161.19,3.1004]
[1724518982011,0.03935567,161.22,161.18,0.04607507]
[1724518983107,0.03935567,161.22,161.19,3.1005]
[1724518983413,0.03935567,161.22,161.18,0.04607507]
[1724518984215,23.83935567,161.22,161.18,0.04607507]
[1724518986112,0.03935567,161.22,161.18,0.04607507]
[1724518987717,23.83935567,161.22,161.18,0.04607507]
[1724518988209,23.8,161.29,161.18,0.04607507]
[1724518988412,23.8,161.29,161.17,23.8]
[1724518988608,25.0469,161.29,161.17,23.8]
[1724518988835,25.0469,161.29,161.16,1.2284]
[1724518988836,23.8,161.24,161.16,1.2284]
[1724518989237,0.04582292,161.22,161.18,0.04330641]
[1724518990413,23.8,161.31,161.19,23.8]
[1724518990610,23.8,161.31,161.21,23.8]
[1724518990814,29.4174,161.36,161.24,23.8]
[1724518991014,26.32,161.36,161.24,23.8]
[1724518991516,0.0461922,161.32,161.28,0.04057114]
[1724518992720,0.0461922,161.32,161.3,3.0983]
[1724518993014,0.0461922,161.32,161.28,23.84057114]
[1724518994215,0.0461922,161.32,161.31,3.0982]
[1724518994614,0.0461922,161.32,161.29,1.2066]
[1724518994816,0.0461922,161.32,161.28,0.04057114]
[1724518995518,23.8,161.29,161.28,0.04057114]
[1724518995913,3.099,161.27,161.19,0.99545945]
[1724518996113,26.899,161.27,161.18,0.99545945]
[1724518996316,23.8,161.27,161.17,3.7229]
[1724518996511,23.8,161.27,161.18,0.99572993]
[1724518996920,0.04755111,161.24,161.21,0.04403327]
[1724518999125,0.04755111,161.24,161.21,3.14413327]
[1724518999722,0.04755111,161.24,161.21,0.04403327]
[1724519000327,3.0997,161.23,161.21,0.04403327]
[1724519000622,0.04755111,161.24,161.21,0.04403327]
[1724519000822,3.14715111,161.24,161.21,0.04403327]
[1724519001230,0.04755111,161.24,161.21,0.04403327]
[1724519003723,3.14705111,161.24,161.21,0.04403327]
[1724519004816,0.04755111,161.24,161.21,0.04403327]
[1724519005716,3.14715111,161.24,161.21,0.04403327]
[1724519009620,0.04755111,161.24,161.21,0.04403327]
[1724519010330,3.14715111,161.24,161.21,0.04403327]
[1724519011128,3.0997,161.23,161.21,0.04403327]
[1724519011326,0.04755111,161.24,161.21,0.04403327]
[1724519011530,23.8,161.22,161.21,0.04403327]
[1724519011722,26.8999,161.22,161.21,0.04403327]
[1724519011927,23.8,161.22,161.12,2.5516]
[1724519012123,23.8,161.2,161.12,2.5516]
[1724519012528,23.8,161.22,161.12,2.5516]
[1724519012729,3.1001,161.21,161.12,2.5516]
[1724519012925,0.0467728,161.18,161.15,0.0391497]
[1724519013632,0.0467728,161.18,161.17,3.1009]
[1724519017533,0.0467728,161.18,161.16,3.101]
[1724519018132,0.0467728,161.18,161.17,3.1009]
[1724519021833,6.8527,161.26,161.16,25.1079]
[1724519022338,6.8527,161.26,161.2,3.1002]
[1724519022535,6.8527,161.26,161.17,19.04]
[1724519022735,0.0414158,161.23,161.2,0.04253946]
[1724519022940,0.0414158,161.23,161.22,3.0999]
[1724519024438,0.0414158,161.23,161.21,3.1001]
[1724519024637,0.0414158,161.23,161.2,0.04253946]
[1724519026146,23.8,161.22,161.2,0.04253946]
[1724519026351,26.9001,161.22,161.2,0.04253946]
[1724519028439,3.1001,161.21,161.2,0.04253946]
[1724519028643,23.8,161.22,161.11,1.2479]
[1724519028844,3.7883,161.25,161.11,1.2479]
[1724519028845,23.8,161.2,161.11,1.2479]
[1724519029047,3.1006,161.19,161.11,1.2479]
[1724519029444,23.8,161.17,161.1,27.82911636]
[1724519029645,0.04513634,161.15,161.12,0.04616411]
[1724519030945,23.84513634,161.15,161.12,0.04616411]
[1724519031146,0.04513634,161.15,161.12,0.04616411]
[1724519032242,0.04513634,161.15,161.13,3.1015]
[1724519033046,0.04513634,161.15,161.14,3.1015]
[1724519033350,3.0995,161.25,161.14,23.8]
[1724519033746,23.8,161.26,161.14,23.8]
[1724519034158,0.04764558,161.22,161.19,3.1003]
[1724519034346,0.04764558,161.22,161.18,0.04544894]
[1724519035452,0.04764558,161.22,161.2,3.1002]
[1724519037757,0.04764558,161.22,161.18,3.14594894]
[1724519037950,0.04764558,161.22,161.18,0.04544894]
[1724519040955,0.04764558,161.22,161.18,3.14614894]
[1724519042254,0.04764558,161.22,161.19,3.1005]
[1724519042681,0.04764558,161.22,161.18,0.04544894]
[1724519043059,0.04764558,161.22,161.19,3.1005]
[1724519044667,23.84764558,161.22,161.18,0.04544894]
[1724519045353,0.04764558,161.22,161.18,0.04544894]
[1724519046457,0.04764558,161.22,161.18,3.14614894]
[1724519047062,3.14754558,161.22,161.18,3.14614894]
[1724519047259,0.04764558,161.22,161.18,0.04544894]
[1724519047561,3.1001,161.21,161.18,0.04544894]
[1724519048156,3.1004,161.2,161.18,0.04544894]
[1724519048359,23.84764558,161.22,161.18,0.04544894]
[1724519048559,19.06,161.2,161.18,0.04544894]
[1724519048758,3.1005,161.19,161.18,0.04544894]
[1724519048959,19.06,161.2,161.11,1.3167]
[1724519049160,19.06,161.17,161.1,24.76]
[1724519049361,22.21615258,161.17,161.13,3.1015]
[1724519049960,22.25920614,161.17,161.13,0.04363077]
[1724519050464,23.84,161.16,161.13,0.04363077]
[1724519050660,3.03986674,161.15,161.13,0.04363077]
[1724519051372,6.14116674,161.15,161.13,0.04363077]
[1724519051864,3.03986674,161.15,161.13,0.04363077]
[1724519052066,25.161,161.16,161.08,3.1025]
[1724519052471,3.1018,161.13,161.04,28.2582242]
[1724519052678,3.09819564,161.15,161.09,3.1022]
[1724519053167,3.14258728,161.14,161.1,3.1437291]
[1724519053366,0.04098728,161.14,161.1,0.0416291]
[1724519053773,0.04098728,161.14,161.12,3.1017]
[1724519054978,0.04098728,161.14,161.1,0.0416291]
[1724519056374,0.04098728,161.14,161.13,3.1017]
[1724519060079,0.04098728,161.14,161.11,1.2183]
[1724519060080,23.84,161.23,161.12,23.84]
[1724519060280,23.84,161.23,161.13,3.11080146]
[1724519060508,23.84,161.23,161.16,3.1011]
[1724519060975,0.04387188,161.21,161.18,0.04208824]
[1724519061571,23.88387188,161.21,161.18,0.04208824]
[1724519061971,26.98417188,161.21,161.18,0.04208824]
[1724519062171,23.88387188,161.21,161.18,0.04208824]
[1724519062377,26.33697188,161.21,161.18,0.04208824]
[1724519062578,3.1005,161.19,161.18,0.04208824]
[1724519065577,23.84,161.19,161.08,24.8]
[1724519065777,23.84,161.15,161.08,24.8]
[1724519065977,26.9414,161.15,161.1,3.102]
[1724519066182,26.9414,161.15,161.08,24.8]
[1724519066379,23.84,161.15,161.08,24.8]
[1724519066584,3.102,161.11,161.1,0.0454434]
[1724519066777,3.15017477,161.11,161.09,0.0425082]
[1724519067183,3.1022,161.1,161.09,0.0425082]
[1724519067510,23.88415903,161.12,161.09,0.0425082]
[1724519068287,3.1021,161.11,161.09,0.0425082]
[1724519071990,3.1022,161.1,161.09,0.0425082]
[1724519072286,26.9422,161.1,161.09,0.0425082]
[1724519072490,19.06,161.1,161.01,3.02523427]
[1724519072995,3.1026,161.09,161.03,3.1034]
[1724519073398,3.1028,161.07,161.0,1.2916]
[1724519073686,19.06,161.07,161.04,0.04108205]
[1724519075383,0.04626215,161.08,161.04,3.14448205]
[1724519075590,0.04626215,161.08,161.04,0.04108205]
[1724519075893,0.04626215,161.08,161.06,3.1029]
[1724519076694,0.04626215,161.08,161.07,3.1028]
[1724519079091,0.04626215,161.08,161.06,3.1029]
[1724519083897,0.04626215,161.08,161.07,3.1028]
[1724519084399,19.06,161.14,161.09,3.1022]
[1724519085397,19.06,161.14,161.1,0.04435072]
[1724519085594,0.04174395,161.13,161.1,0.04435072]
[1724519085799,3.14354395,161.13,161.1,0.04435072]
[1724519086594,3.1019,161.12,161.1,0.04435072]
[1724519088800,3.14344395,161.13,161.1,0.04435072]
[1724519092204,0.04174395,161.13,161.1,0.04435072]
[1724519092905,0.04174395,161.13,161.1,3.14655072]
[1724519093607,3.14344395,161.13,161.1,3.14655072]
[1724519094106,3.1019,161.12,161.1,0.04435072]
[1724519094307,0.04174395,161.13,161.1,0.04435072]
[1724519094804,3.14344395,161.13,161.1,0.04435072]
[1724519095403,3.1019,161.12,161.1,0.04435072]
[1724519098009,3.14344395,161.13,161.1,0.04435072]
[1724519099603,3.1019,161.12,161.1,0.04435072]
[1724519100719,22.26663082,161.13,161.1,0.04435072]
[1724519101013,19.10174395,161.13,161.1,0.04435072]
[1724519101209,3.102,161.11,161.1,0.04435072]
[1724519102517,22.162,161.11,161.1,0.04435072]
[1724519103312,3.1027,161.08,161.04,3.1034]
[1724519103718,19.06,161.08,161.0,1.2916]
[1724519103917,3.103,161.07,161.0,1.2916]
[1724519104320,0.04553535,161.05,161.03,3.1036]
[1724519104618,0.04553535,161.05,161.02,0.04138047]
[1724519105024,0.04553535,161.05,161.03,3.1036]
[1724519105223,0.04553535,161.05,161.02,0.04138047]
[1724519105526,0.04553535,161.05,161.04,3.1034]
[1724519105717,3.102,161.12,161.03,19.06]
[1724519106328,3.1021,161.11,161.06,3.1028]
[1724519106730,0.03957258,161.1,161.07,0.04507628]
[1724519107818,3.14187258,161.1,161.07,0.04507628]
[1724519108327,0.03957258,161.1,161.07,0.04507628]
[1724519111130,3.1025,161.09,161.07,0.04507628]
[1724519111636,0.03957258,161.1,161.07,0.04507628]
[1724519112733,3.1026,161.08,161.07,0.04507628]
[1724519113755,0.03957258,161.1,161.07,0.04507628]
[1724519115632,3.14197258,161.1,161.07,0.04507628]